bitfinex-derivatives/quotes_BTCF0:USTF0_20241217
["timestamp","ask_amount","ask_price","bid_price","bid_amount"]
[1734405917258,7.985e-05,106510.0,106500.0,0.91084496]
[1734405917453,0.3608,106540.0,106500.0,1.49714444]
[1734405917654,0.49362348,106550.0,106530.0,0.10243148]
[1734405917856,0.49362348,106550.0,106530.0,0.46323148]
[1734405918060,0.13282348,106550.0,106530.0,0.49533148]
[1734405918362,0.11233635,106540.0,106530.0,0.49533148]
[1734405919062,0.08426757,106540.0,106530.0,0.49533148]
[1734405920059,0.08426757,106540.0,106530.0,0.439832]
[1734405920060,0.08476757,106540.0,106530.0,0.439832]
[1734405921565,0.00058508,106540.0,106530.0,0.439832]
[1734405927863,0.00058508,106540.0,106530.0,0.58708358]
[1734405928969,0.00058508,106540.0,106530.0,0.67163516]
[1734405929171,0.0316,106560.0,106550.0,0.046924]
[1734405929470,0.0316,106560.0,106550.0,0.407724]
[1734405930068,0.11253849,106570.0,106560.0,0.046919]
[1734405930372,0.02847087,106570.0,106560.0,0.407719]
[1734405931270,0.00941618,106570.0,106560.0,0.49227058]
[1734405932267,0.00011487,106570.0,106560.0,0.52267058]
[1734405934971,0.00061487,106570.0,106560.0,0.52267058]
[1734405936074,0.00061487,106570.0,106560.0,0.438119]
[1734405943071,0.08479736,106570.0,106560.0,0.438119]
[1734405943971,0.08479736,106570.0,106560.0,0.49357885]
[1734405948580,0.11286614,106570.0,106560.0,0.438119]
[1734405948975,0.11286614,106570.0,106560.0,0.49357885]
[1734405951082,0.16832599,106570.0,106560.0,0.407719]
[1734405951270,0.20012599,106570.0,106560.0,0.407719]
[1734405951970,0.20012599,106570.0,106560.0,0.046919]
[1734405952376,0.22818881,106570.0,106560.0,0.046919]
[1734405952577,0.20007989,106570.0,106560.0,0.046919]
[1734405953072,0.08787472,106570.0,106560.0,0.046919]
[1734405953282,0.14462221,106570.0,106560.0,0.46317885]
[1734405953581,0.11282221,106570.0,106560.0,0.5186387]
[1734405954087,0.11282221,106570.0,106560.0,0.46317885]
[1734405955989,0.11232221,106570.0,106560.0,0.407719]
[1734405957377,0.14042896,106570.0,106560.0,0.407719]
[1734405957677,0.17082896,106570.0,106560.0,0.407719]
[1734405960793,0.55969178,106570.0,106560.0,0.046919]
[1734405961788,0.531946,106570.0,106560.0,0.046919]
[1734405961982,0.61645544,106570.0,106560.0,0.046919]
[1734405962291,0.64420122,106570.0,106560.0,0.046919]
[1734405962872,0.78481196,106570.0,106560.0,0.046919]
[1734405963085,0.64420122,106570.0,106560.0,0.046919]
[1734405963380,0.61641636,106570.0,106560.0,0.046919]
[1734405963587,0.53190692,106570.0,106560.0,0.046919]
[1734405965381,0.21802192,106570.0,106560.0,0.046919]
[1734405965588,0.57882192,106570.0,106560.0,0.046919]
[1734405966681,0.57882192,106570.0,106550.0,0.408223]
[1734405966682,0.046919,106560.0,106550.0,0.408223]
[1734405966981,0.63756635,106560.0,106540.0,0.407727]
[1734405967183,0.19694735,106550.0,106540.0,0.407727]
[1734405967497,0.22854735,106550.0,106540.0,0.407727]
[1734405967789,0.22854735,106550.0,106540.0,0.046927]
[1734405968782,0.4160644,106550.0,106530.0,0.440432]
[1734405968977,0.19672421,106540.0,106530.0,0.440432]
[1734405969185,0.22702421,106540.0,106530.0,0.440432]
[1734405969481,0.1145863,106540.0,106530.0,0.440432]
[1734405971202,0.31153365,106540.0,106530.0,0.079632]
[1734405971384,0.19909574,106540.0,106530.0,0.079632]
[1734405971693,0.19909574,106540.0,106530.0,0.407732]
[1734405972985,0.24602374,106540.0,106530.0,0.407732]
[1734405973391,0.24602374,106540.0,106530.0,0.046932]
[1734405973790,0.25525941,106540.0,106530.0,0.046932]
[1734405973986,0.25525941,106540.0,106530.0,0.407732]
[1734405976085,0.17074997,106540.0,106530.0,0.407732]
[1734405978002,0.22624794,106540.0,106530.0,0.407732]
[1734405979199,0.22624794,106540.0,106530.0,0.440032]
[1734405980000,0.22624794,106540.0,106530.0,0.440532]
[1734405986004,0.22624794,106540.0,106530.0,0.0005]
[1734405986005,0.28174591,106540.0,106530.0,0.0005]
[1734405986202,0.67076446,106540.0,106530.0,0.0005]
[1734405987008,0.55832655,106540.0,106530.0,0.0005]
[1734405987510,0.67057154,106540.0,106530.0,0.0005]
[1734405987693,0.25427357,106540.0,106530.0,0.0005]
[1734405987893,0.25427357,106540.0,106530.0,0.10292997]
[1734405987894,0.1987756,106540.0,106530.0,0.10292997]
[1734405988098,0.1987756,106540.0,106530.0,0.13502997]
[1734405988601,0.25427357,106540.0,106530.0,0.079532]
[1734405990304,0.22397357,106540.0,106530.0,0.079532]
[1734405990510,0.17704557,106540.0,106530.0,0.440332]
[1734405990709,0.08429005,106540.0,106530.0,0.55132794]
[1734405990896,0.03439005,106540.0,106530.0,0.58192794]
[1734405991200,0.11224499,106550.0,106540.0,0.046928]
[1734405991400,0.11224499,106550.0,106540.0,0.13312597]
[1734405991815,0.1123538,106550.0,106540.0,0.13312597]
[1734405992401,0.00010881,106550.0,106540.0,0.49392597]
[1734405993100,0.00060881,106550.0,106540.0,0.49392597]
[1734405993510,0.00060881,106550.0,106540.0,0.54942394]
[1734405994011,0.00010881,106550.0,106540.0,0.52295458]
[1734405994796,0.00010881,106550.0,106540.0,0.438428]
[1734405995002,0.00060881,106550.0,106540.0,0.077628]
[1734405995309,0.00060881,106550.0,106540.0,0.438428]
[1734405995710,0.00060881,106550.0,106540.0,0.52295458]
[1734406001005,0.00060881,106550.0,106540.0,0.53234251]
[1734406005114,0.00060881,106550.0,106540.0,0.407728]
[1734406005614,0.00060881,106550.0,106540.0,0.52275458]
[1734406008014,0.00010881,106550.0,106540.0,0.52275458]
[1734406009808,0.00010881,106550.0,106540.0,0.82275458]
[1734406013508,0.11224499,106590.0,106550.0,0.04692]
[1734406013715,0.11224499,106590.0,106580.0,0.49223658]
[1734406014521,0.11236305,106590.0,106580.0,0.49223658]
[1734406014725,0.00011806,106590.0,106580.0,0.49223658]
[1734406015014,0.00934628,106590.0,106580.0,0.49223658]
[1734406015219,0.00011806,106590.0,106580.0,0.49223658]
[1734406018019,0.01900647,106590.0,106580.0,0.49223658]
[1734406021119,0.00011806,106590.0,106580.0,0.49223658]
[1734406021623,0.00011806,106590.0,106580.0,0.85303658]
[1734406022530,0.00011806,106590.0,106580.0,0.95143658]
[1734406025227,0.00061806,106590.0,106580.0,0.95143658]
[1734406026216,0.10948617,106600.0,106590.0,0.046906]
[1734406026419,0.10948617,106600.0,106590.0,0.57675916]
[1734406027315,0.10960616,106600.0,106590.0,0.57675916]
[1734406031623,0.10011999,106600.0,106590.0,0.57675916]
[1734406032018,0.10011999,106600.0,106590.0,0.80755916]
[1734406035926,0.10011999,106600.0,106590.0,0.75853962]
[1734406037228,0.10061999,106600.0,106590.0,0.75853962]
[1734406038227,0.10011999,106600.0,106590.0,0.75853962]
[1734406039122,0.10061999,106600.0,106590.0,0.75853962]
[1734406042829,0.10061999,106600.0,106590.0,0.6477355]
[1734406043125,0.10011999,106600.0,106590.0,0.75853962]
[1734406044135,0.10011999,106600.0,106590.0,0.52773962]
[1734406048437,0.0005,106610.0,106600.0,0.046902]
[1734406048733,0.0005,106610.0,106600.0,0.60650818]
[1734406049117,0.21004499,106620.0,106600.0,0.60650818]
[1734406049322,0.21004499,106620.0,106610.0,0.51850112]
[1734406049517,0.21012156,106620.0,106610.0,0.51850112]
[1734406050226,0.14059205,106630.0,106620.0,0.046893]
[1734406050429,0.14059205,106640.0,106630.0,0.046888]
[1734406050625,0.17119205,106640.0,106630.0,0.46309006]
[1734406051225,0.03071314,106640.0,106630.0,0.51849212]
[1734406051622,0.03197853,106640.0,106630.0,0.51849212]
[1734406052031,0.03197853,106640.0,106630.0,0.49206734]
[1734406052717,0.0320002,106640.0,106630.0,0.49206734]
[1734406054336,0.0014002,106640.0,106630.0,0.49206734]
[1734406055132,0.0019002,106640.0,106630.0,0.49206734]
[1734406055329,0.00068,106650.0,106640.0,0.046884]
[1734406055525,0.00068,106650.0,106640.0,0.49206334]
[1734406056138,0.0328,106660.0,106650.0,0.04688]
[1734406056331,0.00010959,106660.0,106650.0,0.57643868]
[1734406056634,0.00010959,106660.0,106650.0,0.49205934]
[1734406059923,0.00010959,106660.0,106650.0,0.57643868]
[1734406060640,0.00010959,106660.0,106650.0,0.64073868]
[1734406061227,5.9e-07,106660.0,106650.0,0.64073868]
[1734406061729,0.0305,106670.0,106660.0,0.046875]
[1734406062036,0.0305,106670.0,106660.0,0.49205434]
[1734406062631,0.00212395,106680.0,106660.0,0.49205434]
[1734406062930,0.00212395,106680.0,106670.0,0.49205034]
[1734406063234,0.00219747,106680.0,106670.0,0.49205034]
[1734406064035,0.00344499,106680.0,106670.0,0.49205034]
[1734406070235,0.00394499,106680.0,106670.0,0.49205034]
[1734406072629,0.3608,106690.0,106670.0,0.87642968]
[1734406072835,0.00048,106710.0,106700.0,0.046858]
[1734406073040,0.01908519,106720.0,106700.0,0.80597934]
[1734406073245,0.0612,106730.0,106710.0,0.44517934]
[1734406073450,0.0612,106730.0,106720.0,0.49202834]
[1734406073750,0.06131663,106730.0,106720.0,0.26712487]
[1734406074750,0.06131663,106730.0,106720.0,0.046849]
[1734406075065,0.42211663,106730.0,106720.0,0.046849]
[1734406075235,0.06131663,106730.0,106720.0,0.046849]
[1734406075440,0.42211663,106730.0,106720.0,0.046849]
[1734406076241,0.06131663,106730.0,106720.0,0.046849]
[1734406077244,0.06131663,106730.0,106720.0,0.13122834]
[1734406077450,0.06131663,106730.0,106720.0,0.49202834]
[1734406079453,0.06131663,106730.0,106720.0,0.046849]
[1734406080448,0.06131663,106730.0,106720.0,0.407649]
[1734406080845,0.06131663,106730.0,106720.0,0.046849]
[1734406081152,0.06131663,106730.0,106720.0,0.407649]
[1734406082247,0.06131663,106730.0,106720.0,0.49202834]
[1734406082742,0.06131663,106730.0,106720.0,0.13122834]
[1734406082947,0.06131663,106730.0,106720.0,0.49202834]
[1734406083656,0.03041663,106730.0,106720.0,0.49202834]
[1734406084248,0.00061663,106730.0,106720.0,0.13122834]
[1734406084552,0.00061663,106730.0,106720.0,0.49202834]
[1734406088351,0.00061663,106730.0,106720.0,0.49214254]
[1734406088561,0.00061663,106730.0,106720.0,0.52374254]
[1734406092866,0.00061663,106730.0,106720.0,0.5312504]
[1734406093163,0.00061663,106730.0,106720.0,0.7620504]
[1734406093964,0.00061663,106730.0,106720.0,0.67767106]
[1734406094166,0.00061663,106730.0,106720.0,0.7620504]
[1734406094952,0.00061663,106730.0,106690.0,0.25010922]
[1734406095159,0.3608,106710.0,106700.0,0.046857]
[1734406095353,0.3608,106710.0,106700.0,0.13123634]
[1734406095565,0.3608,106710.0,106700.0,0.19433634]
[1734406098164,0.45471663,106730.0,106720.0,0.046849]
[1734406098362,0.45471663,106730.0,106720.0,0.13122834]
[1734406099366,0.45471663,106730.0,106720.0,0.046849]
[1734406100769,0.45471663,106730.0,106710.0,0.08437934]
[1734406100967,0.3608,106720.0,106710.0,0.046852]
[1734406102667,0.046853,106710.0,106700.0,0.047356]
[1734406102858,0.54784311,106710.0,106700.0,0.047356]
[1734406103667,0.50099011,106710.0,106700.0,0.047356]
[1734406106068,0.50099011,106710.0,106700.0,0.13173534]
[1734406106262,0.3608,106710.0,106700.0,0.13173534]
[1734406107564,0.3608,106710.0,106700.0,0.21611468]
[1734406107765,0.3608,106710.0,106700.0,0.13173534]
[1734406107972,0.3608,106720.0,106710.0,0.046853]
[1734406108171,0.3608,106720.0,106710.0,0.13123234]
[1734406108371,0.45471663,106730.0,106720.0,0.046849]
[1734406109376,0.42381663,106730.0,106720.0,0.046849]
[1734406111365,0.53587426,106730.0,106720.0,0.046849]
[1734406112594,0.42381663,106730.0,106720.0,0.046849]
[1734406112880,0.53587704,106730.0,106720.0,0.046849]
[1734406114479,0.61992212,106730.0,106720.0,0.046849]
[1734406115283,1.00430146,106730.0,106700.0,0.45331227]
[1734406115485,1.00430146,106730.0,106710.0,0.046853]
[1734406115486,0.1961062,106720.0,106710.0,0.046853]
[1734406115686,0.44484579,106720.0,106710.0,0.046853]
[1734406115985,0.5569062,106720.0,106710.0,0.046853]
[1734406116381,0.44484579,106720.0,106710.0,0.046853]
[1734406117004,0.5569062,106720.0,106710.0,0.046853]
[1734406117175,0.44484579,106720.0,106710.0,0.046853]
[1734406117378,0.5569062,106720.0,106710.0,0.046853]
[1734406117677,0.44484579,106720.0,106710.0,0.046853]
[1734406118184,0.5569062,106720.0,106710.0,0.046853]
[1734406118582,0.44484579,106720.0,106710.0,0.046853]
[1734406119088,0.5569062,106720.0,106710.0,0.046853]
[1734406120190,0.5900062,106720.0,106710.0,0.046853]
[1734406121993,0.6368552,106720.0,106710.0,0.046853]
[1734406122887,0.55280941,106720.0,106710.0,0.046853]
[1734406124385,0.69299952,106720.0,106710.0,0.046853]
[1734406124780,0.046853,106710.0,106700.0,0.047357]
[1734406124984,0.55291341,106710.0,106700.0,0.047357]
[1734406125186,0.58451341,106710.0,106700.0,0.047357]
[1734406125591,0.58451341,106710.0,106700.0,0.0005]
[1734406125592,0.66889275,106710.0,106700.0,0.0005]
[1734406125891,0.80908286,106710.0,106700.0,0.0005]
[1734406126096,0.61264311,106710.0,106700.0,0.0005]
[1734406126278,0.72487756,106710.0,106700.0,0.0005]
[1734406127090,0.66906679,106710.0,106700.0,0.0005]
[1734406127285,0.8092569,106710.0,106700.0,0.0005]
[1734406127491,0.66906679,106710.0,106700.0,0.0005]
[1734406128392,0.046858,106700.0,106690.0,0.00010881]
[1734406128687,1.14676174,106700.0,106690.0,0.00010881]
[1734406128894,2.94676174,106700.0,106690.0,0.00010881]
[1734406129284,2.77838483,106700.0,106690.0,0.00060881]
[1734406129892,2.47838483,106700.0,106690.0,0.00060881]
[1734406130192,2.47838483,106700.0,106690.0,0.00010881]
[1734406130793,0.97838483,106700.0,106690.0,0.00010881]
[1734406131296,0.97838483,106700.0,106690.0,0.00060881]
[1734406132397,0.97838483,106700.0,106690.0,0.00010881]
[1734406132693,0.95599173,106700.0,106690.0,0.00010881]
[1734406133195,0.95599173,106700.0,106690.0,0.00060881]
[1734406133581,1.09621922,106700.0,106690.0,0.00060881]
[1734406134179,0.95599173,106700.0,106690.0,0.00010881]
[1734406135116,0.90288078,106700.0,106690.0,0.13135015]
[1734406135394,0.79087857,106700.0,106690.0,0.13185015]
[1734406135692,0.70692,106700.0,106690.0,0.04747081]
[1734406136301,0.70692,106700.0,106690.0,0.04697081]
[1734406137181,0.3608,106700.0,106690.0,0.04747081]
[1734406138298,0.3608,106700.0,106690.0,0.04697081]
[1734406138495,0.3608,106700.0,106690.0,0.13135015]
[1734406138693,0.39410501,106710.0,106700.0,0.046858]
[1734406138895,0.39410501,106710.0,106700.0,0.13123734]
[1734406139103,0.36090501,106710.0,106700.0,0.13123734]
[1734406139398,0.36090501,106710.0,106700.0,0.046858]
[1734406139894,0.36090501,106710.0,106700.0,0.13123734]
[1734406140294,0.00010501,106710.0,106700.0,0.16423734]
[1734406147903,0.00010501,106710.0,106700.0,0.17040549]
[1734406150305,0.00010501,106710.0,106700.0,0.20250549]
[1734406154602,0.00010501,106710.0,106700.0,0.56330549]
[1734406154798,0.00010501,106710.0,106700.0,0.64768483]
[1734406155315,0.00010501,106710.0,106700.0,0.59570549]
[1734406155603,0.00010501,106710.0,106700.0,0.68008483]
[1734406156310,0.00010501,106710.0,106700.0,0.59570549]
[1734406159309,0.00010501,106710.0,106700.0,0.23490549]
[1734406160011,0.00010501,106710.0,106700.0,0.51261342]
[1734406163212,0.00010501,106710.0,106700.0,0.47961342]
[1734406164414,0.00010501,106710.0,106700.0,0.81284394]
[1734406165299,0.00010501,106710.0,106700.0,0.53513601]
[1734406168315,0.08406358,106710.0,106700.0,0.53513601]
[1734406170014,0.08406358,106710.0,106700.0,0.56135893]
[1734406175417,0.08406358,106710.0,106700.0,0.59385893]
[1734406175607,0.00010501,106710.0,106700.0,0.67672954]
[1734406175912,0.00010501,106710.0,106700.0,0.26062841]
[1734406176218,0.00010501,106710.0,106700.0,0.67672954]
[1734406176922,0.00010501,106710.0,106700.0,0.26062841]
[1734406177508,0.00010501,106710.0,106700.0,0.95593566]
[1734406178512,0.00010501,106710.0,106700.0,0.59513566]
[1734406178714,0.00010501,106710.0,106700.0,0.59513857]
[1734406181617,0.00010501,106710.0,106700.0,0.16362841]
[1734406181819,0.00010501,106710.0,106700.0,0.52442841]
[1734406182627,0.00010501,106710.0,106700.0,0.16362841]
[1734406182817,0.00010501,106710.0,106700.0,0.52442841]
[1734406183010,0.00010501,106710.0,106700.0,0.85899219]
[1734406183224,0.00010501,106710.0,106700.0,0.85898557]
[1734406185331,0.08406358,106710.0,106700.0,0.38758331]
[1734406185519,0.08406358,106710.0,106700.0,0.85898557]
[1734406185830,0.00010501,106710.0,106700.0,0.85898557]
[1734406186428,0.08406358,106710.0,106700.0,0.85898557]
[1734406186829,0.00010501,106710.0,106700.0,0.85898557]
[1734406190521,0.00010501,106710.0,106700.0,0.52442841]
[1734406191527,0.00010501,106710.0,106700.0,0.05302615]
[1734406191729,0.44486358,106710.0,106700.0,0.49870944]
[1734406193130,0.44486358,106710.0,106700.0,0.38810718]
[1734406193333,0.44486358,106710.0,106700.0,0.49870944]
[1734406193939,0.55686579,106710.0,106700.0,0.49870944]
[1734406194137,0.44486358,106710.0,106700.0,0.77798656]
[1734406194337,0.44486358,106710.0,106700.0,0.49870944]
[1734406195542,0.44486358,106710.0,106700.0,0.38810718]
[1734406195749,0.60371879,106710.0,106700.0,0.72267475]
[1734406195933,0.66651879,106710.0,106700.0,0.38759372]
[1734406196638,0.66651879,106710.0,106700.0,0.44289485]
[1734406196639,0.58256022,106710.0,106700.0,0.44289485]
[1734406199444,0.58256022,106710.0,106700.0,0.38759372]
[1734406200744,0.66675813,106710.0,106700.0,0.44289485]
[1734406201444,0.66675813,106710.0,106700.0,0.38759372]
[1734406201743,0.58256022,106710.0,106700.0,0.38759372]
[1734406201943,0.58256022,106710.0,106700.0,0.10832728]
[1734406202146,0.58256022,106710.0,106700.0,0.16362841]
[1734406202533,0.4450869,106710.0,106700.0,0.49819598]
[1734406202737,0.0842869,106710.0,106700.0,0.85899598]
[1734406202938,0.00010501,106710.0,106700.0,0.92787701]
[1734406203635,0.00010501,106710.0,106700.0,0.87257588]
[1734406203841,0.00010501,106710.0,106700.0,0.25822841]
[1734406204048,0.00010501,106710.0,106700.0,0.31352954]
[1734406205048,0.00010501,106710.0,106700.0,0.64818802]
[1734406205546,0.00010501,106710.0,106700.0,0.59288689]
[1734406210158,0.00010501,106710.0,106700.0,0.95368689]
[1734406213855,0.00010501,106710.0,106700.0,1.00898802]
[1734406215542,0.00010501,106710.0,106700.0,0.64818802]
[1734406215952,0.00010501,106710.0,106700.0,0.59288689]
[1734406216146,0.00010501,106710.0,106700.0,0.95368689]
[1734406217351,0.00010501,106710.0,106700.0,0.59288689]
[1734406217558,0.00010501,106710.0,106700.0,0.95368689]
[1734406218054,0.00010501,106710.0,106700.0,0.59288689]
[1734406218260,0.00010501,106710.0,106700.0,0.95368689]
[1734406218559,0.00010501,106710.0,106700.0,0.61902841]
[1734406218751,0.00010501,106710.0,106700.0,0.95356608]
[1734406219356,0.00010501,106710.0,106700.0,0.74836382]
[1734406219661,0.00010501,106710.0,106700.0,0.85896608]
[1734406219849,0.00010501,106710.0,106700.0,0.49816608]
[1734406219850,0.09490501,106710.0,106700.0,0.49816608]
[1734406221757,0.58672648,106710.0,106700.0,0.38720265]
[1734406221972,0.58672648,106710.0,106700.0,0.44250378]
[1734406222450,0.64202761,106710.0,106700.0,0.27887537]
[1734406222648,0.75427474,106710.0,106700.0,0.27887537]
[1734406222849,0.75427474,106710.0,106690.0,0.32634518]
[1734406222850,0.046858,106700.0,106690.0,0.32634518]
[1734406223054,0.49185219,106700.0,106690.0,0.38164631]
[1734406223461,0.49185219,106700.0,106690.0,0.38114631]
[1734406223760,0.60407682,106700.0,106690.0,0.05540994]
[1734406224756,0.51988263,106700.0,106690.0,0.05540994]
[1734406224955,0.60403357,106700.0,106690.0,0.05540994]
[1734406226456,0.60403357,106700.0,106690.0,0.06276629]
[1734406227563,0.49180894,106700.0,106690.0,0.06276629]
[1734406228262,0.49180894,106700.0,106690.0,0.00746516]
[1734406228464,0.49180894,106700.0,106690.0,0.06276629]
[1734406234170,0.54711007,106700.0,106690.0,0.00746516]
[1734406234367,0.56552282,106700.0,106690.0,0.00746516]
[1734406234866,0.51022169,106700.0,106690.0,0.00746516]
[1734406237167,0.56552282,106700.0,106690.0,0.00746516]
[1734406243168,0.51022169,106700.0,106690.0,0.00746516]
[1734406243382,0.56552282,106700.0,106690.0,0.00746516]
[1734406244576,0.67774745,106700.0,106690.0,0.00746516]
[1734406244961,0.59359651,106700.0,106690.0,0.00746516]
[1734406246068,0.64889764,106700.0,106690.0,0.00746516]
[1734406246269,0.59359651,106700.0,106690.0,0.00746516]
[1734406246777,0.046862,106690.0,106680.0,0.0394]
[1734406246978,0.75211198,106690.0,106680.0,0.0394]
[1734406247375,0.046875,106660.0,106650.0,0.33453767]
[1734406247578,0.40776791,106660.0,106650.0,0.046879]
[1734406247766,0.40776791,106660.0,106650.0,0.27877486]
[1734406248485,0.40776791,106660.0,106650.0,0.33407599]
[1734406249175,0.40776791,106660.0,106650.0,0.27877486]
[1734406249370,0.40776791,106660.0,106650.0,0.33407599]
[1734406253682,0.40776791,106660.0,106650.0,0.05530113]
[1734406253984,0.40776791,106660.0,106640.0,0.42656935]
[1734406254188,0.40776791,106660.0,106650.0,0.05530113]
[1734406254374,0.40776791,106660.0,106650.0,0.33407599]
[1734406254579,0.40776791,106660.0,106650.0,0.05530113]
[1734406254884,0.40776791,106660.0,106650.0,0.33407599]
[1734406255476,0.46306904,106660.0,106650.0,0.33407599]
[1734406255683,0.46306904,106660.0,106640.0,0.42656935]
[1734406255880,0.3608,106650.0,106640.0,0.81640815]
[1734406256072,0.3608,106650.0,106640.0,0.48187048]
[1734406256272,0.3608,106650.0,106640.0,0.42656935]
[1734406256477,0.3608,106650.0,106640.0,0.48187048]
[1734406258178,0.3608,106650.0,106640.0,0.38857048]
[1734406258380,0.46298013,106650.0,106640.0,0.0005]
[1734406258583,0.49628013,106650.0,106640.0,0.0005]
[1734406258778,0.64226411,106650.0,106640.0,0.0005]
[1734406264396,0.65146404,106650.0,106640.0,0.0005]
[1734406267903,0.65146404,106650.0,106630.0,0.10229721]
[1734406268090,0.3608,106640.0,106630.0,0.10229721]
[1734406269299,0.3608,106640.0,106630.0,0.15759834]
[1734406269608,0.47818398,106650.0,106640.0,0.047384]
[1734406269609,0.3608,106650.0,106640.0,0.047384]
[1734406269791,0.3608,106650.0,106640.0,0.18998626]
[1734406271491,9.291e-05,106660.0,106650.0,0.046879]
[1734406271703,9.291e-05,106660.0,106650.0,0.22218126]
[1734406272002,9.291e-05,106660.0,106650.0,0.19593365]
[1734406275198,9.291e-05,106660.0,106650.0,0.111579]
[1734406275400,0.36089291,106660.0,106650.0,0.111579]
[1734406275610,0.44497689,106660.0,106650.0,0.111579]
[1734406277209,9.291e-05,106660.0,106650.0,0.2802883]
[1734406277401,9.291e-05,106660.0,106650.0,0.55906316]
[1734406277593,9.291e-05,106660.0,106650.0,0.91986316]
[1734406277794,0.44538398,106670.0,106660.0,0.046875]
[1734406277795,0.0005,106670.0,106660.0,0.046875]
[1734406278007,0.0005,106670.0,106660.0,0.16152965]
[1734406278312,0.0005,106670.0,106660.0,0.82232965]
[1734406278611,0.08408398,106690.0,106680.0,0.046866]
[1734406278810,0.08420466,106690.0,106680.0,0.046866]
[1734406279306,0.00012068,106690.0,106680.0,0.19462065]
[1734406281211,0.00012068,106690.0,106680.0,0.6397753]
[1734406281401,0.00012068,106690.0,106680.0,0.55542065]
[1734406283000,0.00012068,106690.0,106680.0,0.19462065]
[1734406283311,0.00012068,106690.0,106680.0,0.22612065]
[1734406284804,0.00012068,106690.0,106680.0,0.141766]
[1734406284997,0.00012068,106690.0,106680.0,0.15307027]
[1734406285713,0.36092068,106690.0,106680.0,0.15307027]
[1734406285915,0.49213733,106690.0,106680.0,0.046866]
[1734406286117,0.55813733,106690.0,106680.0,0.046866]
[1734406287414,0.55813733,106690.0,106670.0,0.04687]
[1734406287617,0.0005,106680.0,106670.0,0.04687]
[1734406288411,0.0333,106680.0,106670.0,0.04687]
[1734406288613,0.3936,106680.0,106670.0,0.04687]
[1734406289207,0.52482065,106680.0,106670.0,0.04687]
[1734406289410,0.52482065,106680.0,106660.0,0.05836105]
[1734406289613,0.3608,106670.0,106660.0,0.046874]
[1734406290217,0.52532065,106680.0,106660.0,0.046874]
[1734406290617,0.08435465,106670.0,106660.0,0.046874]
[1734406290817,0.49202565,106670.0,106660.0,0.046874]
[1734406291027,0.49202565,106670.0,106650.0,0.05852791]
[1734406291211,0.0638,106660.0,106650.0,0.046878]
[1734406292013,0.4246,106660.0,106650.0,0.046878]
[1734406296428,0.3608,106670.0,106650.0,0.5763873]
[1734406296721,0.3608,106670.0,106660.0,0.046875]
[1734406297223,0.51460247,106680.0,106660.0,0.046875]
[1734406297525,0.3608,106670.0,106660.0,0.046875]
[1734406297831,0.407671,106670.0,106660.0,0.046875]
[1734406301830,0.49175498,106670.0,106650.0,0.047378]
[1734406302024,0.394,106660.0,106650.0,0.047378]
[1734406302322,0.0332,106660.0,106650.0,0.13173265]
[1734406302926,0.394,106660.0,106650.0,0.4094066]
[1734406303221,0.394,106660.0,106650.0,0.13173265]
[1734406303823,0.0332,106660.0,106650.0,0.4094066]
[1734406305426,0.0332,106660.0,106650.0,0.32505195]
[1734406305629,0.440875,106660.0,106650.0,0.047378]
[1734406305823,0.502775,106660.0,106650.0,0.047378]
[1734406311626,0.502775,106660.0,106650.0,0.046878]
[1734406314528,0.58685898,106660.0,106650.0,0.046878]
[1734406315920,0.58685898,106660.0,106650.0,0.10224798]
[1734406318524,0.69894404,106660.0,106650.0,0.10224798]
[1734406318720,0.58685898,106660.0,106650.0,0.10224798]
[1734406319631,0.69894404,106660.0,106650.0,0.10224798]
[1734406325532,0.65206904,106660.0,106650.0,0.10224798]
[1734406327034,0.29126904,106660.0,106650.0,0.10224798]
[1734406327228,0.17918398,106660.0,106650.0,0.46304798]
[1734406327426,0.17918398,106660.0,106650.0,0.79758565]
[1734406330251,0.17938314,106660.0,106650.0,0.79814068]
[1734406330824,0.22625814,106660.0,106650.0,0.10224798]
[1734406331029,0.25435252,106660.0,106650.0,0.10224798]
[1734406333636,0.19245252,106660.0,106650.0,0.10224798]
[1734406334538,0.19245252,106660.0,106650.0,0.046878]
[1734406335035,0.22275252,106660.0,106650.0,0.046878]
[1734406338336,0.25545252,106660.0,106650.0,0.046878]
[1734406338735,0.14557752,106660.0,106650.0,0.10224798]
[1734406338940,0.11237752,106660.0,106650.0,0.10224798]
[1734406340443,0.08430651,106660.0,106650.0,0.51841796]
[1734406340752,0.55748403,106670.0,106650.0,0.51841796]
[1734406340938,0.55748403,106670.0,106660.0,0.22101496]
[1734406341243,0.44510651,106670.0,106660.0,0.22101496]
[1734406344448,0.08430651,106670.0,106660.0,0.22101496]
[1734406344837,0.44510651,106670.0,106660.0,0.15761496]
[1734406345041,0.08430651,106670.0,106660.0,0.15761496]
[1734406348446,0.08430651,106670.0,106660.0,0.51841496]
[1734406349453,0.08430651,106670.0,106660.0,0.54851496]
[1734406351553,0.19718403,106680.0,106660.0,0.60388494]
[1734406351751,0.08480651,106680.0,106670.0,0.58201096]
[1734406352049,0.0005,106680.0,106670.0,0.58201096]
[1734406352651,0.00012068,106690.0,106680.0,0.046866]
[1734406352849,0.00012068,106690.0,106680.0,0.55120596]
[1734406354550,0.00062068,106690.0,106680.0,0.55120596]
[1734406355057,0.00062068,106690.0,106680.0,0.19040596]
[1734406355946,0.00062068,106690.0,106680.0,0.55120596]
[1734406356955,0.00062068,106690.0,106680.0,0.60657594]
[1734406357157,0.00062068,106690.0,106680.0,0.55120596]
[1734406358359,0.00062068,106690.0,106680.0,0.60657594]
[1734406361161,0.00062068,106690.0,106680.0,0.61727373]
[1734406361361,0.0974,106720.0,106710.0,0.046853]
[1734406361563,0.0974,106720.0,106710.0,0.10222298]
[1734406361960,0.0974,106720.0,106710.0,0.13112262]
[1734406362261,0.4582,106720.0,106710.0,0.13112262]
[1734406362462,0.45827551,106720.0,106710.0,0.13112262]
[1734406364359,0.09747551,106720.0,106710.0,0.21539224]
[1734406364552,0.06527551,106720.0,106710.0,0.21539224]
[1734406364748,0.06527551,106720.0,106710.0,0.13112262]
[1734406365452,0.03257551,106720.0,106710.0,0.57619224]
[1734406365759,7.551e-05,106720.0,106710.0,0.57619224]
[1734406365950,0.3927,106740.0,106730.0,0.046844]
[1734406366156,0.3927,106740.0,106730.0,0.13111362]
[1734406366953,0.39278478,106740.0,106730.0,0.13111362]
[1734406369563,0.39328478,106740.0,106730.0,0.13111362]
[1734406369955,0.03248478,106740.0,106730.0,0.13111362]
[1734406371657,0.39328478,106740.0,106730.0,0.13111362]
[1734406372265,0.03248478,106740.0,106730.0,0.13111362]
[1734406373665,0.03248478,106740.0,106730.0,0.14164667]
[1734406376162,0.5243944,106740.0,106720.0,0.046848]
[1734406376361,0.47590651,106730.0,106720.0,0.046848]
[1734406376566,0.50700651,106730.0,106720.0,0.046848]